fUSD/lending_fUSD_20240327
["ID","MTS","AMOUNT","RATE_DAILY","PERIOD"]
[320727087,1711539051443,-151.0,0.00054794,120]
[320727088,1711539051453,-500.0,0.00054794,120]
[320727089,1711539051463,-151.0,0.00054794,120]
[320727090,1711539051474,-613.39,0.00054794,30]
[320727091,1711539051484,-500.0,0.00054794,120]
[320727092,1711539051493,-500.0,0.00054794,120]
[320727093,1711539051503,-151.0,0.00054794,120]
[320727094,1711539051514,-500.0,0.00054794,120]
[320727095,1711539051524,-500.0,0.00054794,120]
[320727096,1711539051533,-500.0,0.00054794,120]
[320727097,1711539051543,-670.15,0.00054794,120]
[320727098,1711539051553,-500.0,0.00054794,120]
[320727099,1711539051564,-500.0,0.00054794,120]
[320727100,1711539051574,-500.0,0.00054794,120]
[320727101,1711539051583,-151.0,0.00054794,120]
[320727102,1711539051593,-502.00158178,0.00054794,120]
[320727103,1711539051603,-613.0,0.00054794,120]
[320727104,1711539051613,-500.0,0.00054794,120]
[320727105,1711539051622,-500.0,0.00054794,120]
[320727106,1711539051632,-500.0,0.00054794,120]
[320727107,1711539051643,-741.01,0.00054794,120]
[320727108,1711539051652,-715.82,0.00054794,120]
[320727109,1711539051663,-500.0,0.00054794,120]
[320727110,1711539051673,-500.0,0.00054794,120]
[320727111,1711539051683,-500.0,0.00054794,120]
[320727112,1711539051693,-693.91,0.00054794,120]
[320727113,1711539051702,-500.0,0.00054794,120]
[320727114,1711539051713,-500.0,0.00054794,120]
[320727115,1711539051723,-1436.63,0.00054794,120]
[320727116,1711539051732,-788.63,0.00054794,120]
[320727117,1711539051740,-501.77508693,0.00054794,120]
[320727118,1711539051750,-500.0,0.00054794,120]
[320727119,1711539051759,-852.33,0.00054794,120]
[320727120,1711539051772,-500.0,0.00054794,120]
[320727121,1711539051785,-500.0,0.00054794,120]
[320727122,1711539051798,-500.0,0.00054794,120]
[320727123,1711539051808,-500.0,0.00054794,120]
[320727124,1711539051819,-500.0,0.00054794,120]
[320727125,1711539051829,-500.0,0.00054794,120]
[320727126,1711539051838,-500.0,0.00054794,120]
[320727127,1711539051847,-500.0,0.00054794,120]
[320727128,1711539051858,-500.0,0.00054794,120]
[320727129,1711539051868,-500.0,0.00054794,120]
[320727130,1711539051878,-500.0,0.00054794,120]
[320727131,1711539051888,-608.04,0.00054794,120]
[320727132,1711539051898,-500.0,0.00054794,120]
[320727133,1711539051909,-500.0,0.00054794,60]
[320727134,1711539051920,-500.0,0.00054794,120]
[320727135,1711539051931,-632.68,0.00054794,120]
[320727136,1711539051941,-503.0514996,0.00054794,120]
[320727137,1711539051951,-502.67601051,0.00054794,2]
[320727138,1711539051961,-500.0,0.00054794,60]
[320727139,1711539051971,-500.0,0.00054794,120]
[320727140,1711539051982,-500.0,0.00054794,120]
[320727141,1711539051992,-506.0760227,0.00054794,120]
[320727142,1711539052002,-524.62,0.00054794,120]
[320727143,1711539052013,-620.43,0.00054794,120]
[320727144,1711539052024,-500.0,0.00054794,120]
[320727145,1711539052033,-505.60188997,0.00054794,120]
[320727146,1711539052044,-500.0,0.00054794,120]
[320727147,1711539052054,-818.9,0.00054794,120]
[320727148,1711539052064,-2063.63,0.00054794,120]
[320727149,1711539052075,-500.0,0.00054794,120]
[320727150,1711539052084,-1004.28,0.00054794,120]
[320727151,1711539052095,-508.08831004,0.00054794,120]
[320727152,1711539052107,-2011.71,0.00054794,120]
[320727153,1711539052120,-807.51,0.00054794,120]
[320727154,1711539052132,-502.57191438,0.00054794,120]
[320727155,1711539052145,-500.0,0.00054794,120]
[320727156,1711539052156,-500.0,0.00054794,120]
[320727157,1711539052165,-500.0,0.00054794,120]
[320727158,1711539052176,-500.0,0.00054794,120]
[320727159,1711539052186,-500.0,0.00054794,120]
[320727160,1711539052197,-500.0,0.00054794,120]
[320727161,1711539052208,-763.33,0.00054794,120]
[320727162,1711539052218,-755.18,0.00054794,120]
[320727163,1711539052228,-500.0,0.00054794,120]
[320727164,1711539052242,-500.0,0.00054794,120]
[320727165,1711539052261,-500.0,0.00054794,120]
[320727166,1711539052270,-500.0,0.00054794,120]
[320727167,1711539052282,-506.31798265,0.00054794,120]
[320727168,1711539052295,-487.81,0.00054794,120]
[320727169,1711539052306,-500.0,0.00054794,120]
[320727170,1711539052318,-842.7,0.00054794,120]
[320727171,1711539052328,-500.0,0.00054794,120]
[320727172,1711539052339,-500.0,0.00054794,120]
[320727173,1711539052352,-713.05,0.00054794,120]
[320727174,1711539052362,-500.0,0.00054794,120]
[320727175,1711539052371,-2308.15,0.00054794,120]
[320727176,1711539052381,-569.40070158,0.00054794,120]
[320727177,1711539052390,-500.0,0.00054794,120]
[320727178,1711539052401,-500.0,0.00054794,120]
[320727179,1711539052410,-500.0,0.00054794,120]
[320727180,1711539052539,-500.0,0.00054794,120]
[320727181,1711539052549,-500.0,0.00054794,120]
[320727182,1711539052559,-500.0,0.00054794,120]
[320727183,1711539052569,-500.0,0.00054794,120]
[320727184,1711539052579,-676.12,0.00054794,120]
[320727185,1711539052589,-500.0,0.00054794,120]
[320727186,1711539052599,-500.0,0.00054794,120]
[320727187,1711539052610,-500.0,0.00054794,120]
[320727188,1711539052620,-500.0,0.00054794,120]
[320727189,1711539052629,-849.59,0.00054794,120]
[320727190,1711539052640,-500.0,0.00054794,120]
[320727191,1711539052650,-500.0,0.00054794,120]
[320727192,1711539052661,-677.22,0.00054794,120]
[320727193,1711539052671,-500.0,0.00054794,120]
[320727194,1711539052682,-500.0,0.00054794,120]
[320727195,1711539052691,-500.0,0.00054794,120]
[320727196,1711539052701,-500.0,0.00054794,120]
[320727197,1711539052710,-500.0,0.00054794,120]
[320727198,1711539052720,-500.0,0.00054794,120]
[320727199,1711539052731,-500.0,0.00054794,120]
[320727200,1711539052742,-800.48,0.00054794,120]
[320727201,1711539052753,-988.02,0.00054794,120]
[320727202,1711539052762,-500.0,0.00054794,120]
[320727203,1711539052771,-535.04,0.00054794,120]
[320727204,1711539052781,-930.48,0.00054794,120]
[320727205,1711539052790,-501.68562043,0.00054794,120]
[320727206,1711539052800,-500.0,0.00054794,120]
[320727207,1711539052810,-500.0,0.00054794,120]
[320727208,1711539052820,-500.0,0.00054794,120]
[320727209,1711539052829,-500.0,0.00054794,120]
[320727210,1711539052839,-451.82930917,0.00054794,120]
[320727211,1711539052850,-500.0,0.00054794,120]
[320727212,1711539052860,-500.0,0.00054794,120]
[320727213,1711539052870,-877.53,0.00054794,120]
[320727214,1711539052881,-2082.72,0.00054794,120]
[320727215,1711539052892,-520.53,0.00054794,120]
[320727216,1711539052903,-500.0,0.00054794,120]
[320727217,1711539052914,-1016.45,0.00054794,120]
[320727218,1711539052925,-525.83,0.00054794,120]
[320727219,1711539052935,-151.0,0.00054794,120]
[320727220,1711539052946,-500.0,0.00054794,120]
[320727221,1711539052956,-500.0,0.00054794,120]
[320727222,1711539052966,-500.0,0.00054794,120]
[320727223,1711539052975,-500.0,0.00054794,120]
[320727224,1711539052986,-500.0,0.00054794,120]
[320727225,1711539052997,-1436.62,0.00054794,120]
[320727226,1711539053006,-500.0,0.00054794,120]
[320727227,1711539053017,-2558.6,0.00054794,120]
[320727228,1711539053027,-201.1643096,0.00054794,120]
[320727229,1711539053036,-2044.63,0.00054794,120]
[320727230,1711539053046,-500.0,0.00054794,120]
[320727231,1711539053056,-510.0974238,0.00054794,120]
[320727232,1711539053067,-500.0,0.00054794,120]
[320727233,1711539053076,-500.0,0.00054794,120]
[320727234,1711539053088,-545.88,0.00054794,120]
[320727235,1711539053099,-783.0,0.00054794,120]
[320727236,1711539053108,-500.0,0.00054794,120]
[320727237,1711539053118,-3085.25,0.00054794,120]
[320727238,1711539053127,-500.0,0.00054794,120]
[320727239,1711539053138,-500.0,0.00054794,120]
[320727240,1711539053148,-500.0,0.00054794,120]
[320727241,1711539053158,-839.83,0.00054794,120]
[320727242,1711539053169,-506.77389832,0.00054794,120]
[320727243,1711539053180,-500.0,0.00054794,120]
[320727244,1711539053190,-500.0,0.00054794,120]
[320727245,1711539053200,-500.0,0.00054794,120]
[320727246,1711539053211,-735.26,0.00054794,120]
[320727247,1711539053221,-500.0,0.00054794,120]
[320727248,1711539053231,-500.0,0.00054794,120]
[320727249,1711539053241,-500.0,0.00054794,120]
[320727250,1711539053254,-500.0,0.00054794,7]
[320727251,1711539053265,-3173.89,0.00054794,120]
[320727252,1711539053275,-500.0,0.00054794,120]
[320727253,1711539053284,-1365.01,0.00054794,120]
[320727254,1711539053295,-500.0,0.00054794,120]
[320727255,1711539053305,-1347.96,0.00054794,120]
[320727256,1711539053314,-500.0,0.00054794,120]
[320727257,1711539053325,-510.06807033,0.00054794,120]
[320727258,1711539053336,-500.0,0.00054794,120]
[320727259,1711539053346,-502.97311018,0.00054794,120]
[320727260,1711539053356,-500.0,0.00054794,120]
[320727261,1711539053366,-500.0,0.00054794,120]
[320727262,1711539053376,-5132.44,0.00054794,120]
[320727263,1711539053386,-558.52,0.00054794,120]
[320727264,1711539053396,-263.36281181,0.00054794,120]
[320727265,1711539053406,-151.0,0.00054794,120]
[320727266,1711539053417,-500.0,0.00054794,120]
[320727267,1711539053432,-500.0,0.00054794,120]
[320727268,1711539053455,-7133.78,0.00054794,120]
[320727269,1711539053472,-500.0,0.00054794,120]
[320727270,1711539053491,-579.76,0.00054794,120]
[320727271,1711539053511,-500.0,0.00054794,120]
[320727272,1711539053527,-1944.43,0.00054794,120]
[320727273,1711539053545,-500.0,0.00054794,120]
[320727274,1711539053562,-6097.44,0.00054794,120]
[320727275,1711539053580,-5109.09,0.00054794,120]
[320727276,1711539053599,-663.4,0.00054794,120]
[320727277,1711539053617,-545.62,0.00054794,120]
[320727278,1711539053636,-500.0,0.00054794,120]
[320727279,1711539053654,-500.0,0.00054794,120]
[320727280,1711539053667,-22670.34,0.00054794,120]
[320727281,1711539053683,-2453.89,0.00054794,120]
[320727282,1711539053699,-500.0,0.00054794,120]
[320727283,1711539053713,-7956.37,0.00054794,120]
[320727284,1711539053727,-2612.82,0.00054794,120]
[320727285,1711539053742,-2520.37,0.00054794,120]
[320727286,1711539053757,-1096.81,0.00054794,120]
[320727287,1711539053772,-500.0,0.00054794,120]
[320727288,1711539053787,-500.0,0.00054794,120]
[320727289,1711539053801,-519.55839831,0.00054794,120]
[320727290,1711539053816,-311.81559997,0.00054794,120]
[320727291,1711539053830,-628.48,0.00054794,120]
[320727292,1711539053846,-1032.54,0.00054794,120]
[320727293,1711539053861,-500.0,0.00054794,120]
[320727294,1711539053875,-500.0,0.00054794,120]
[320727295,1711539053890,-500.0,0.00054794,120]
[320727296,1711539053904,-500.0,0.00054794,120]
[320727297,1711539053918,-2884.81,0.00054794,120]
[320727298,1711539053933,-3753.0,0.00054794,120]
[320727299,1711539053950,-500.0,0.00054794,120]
[320727300,1711539053965,-9397.34,0.00054794,120]
[320727301,1711539053980,-5025.57,0.00054794,120]
[320727302,1711539053995,-500.0,0.00054794,120]
[320727303,1711539054010,-43977.12,0.00054794,120]
[320727304,1711539054026,-500.0,0.00054794,120]
[320727305,1711539054042,-500.0,0.00054794,120]
[320727306,1711539054057,-7954.08,0.00054794,120]
[320727307,1711539054072,-500.0,0.00054794,120]
[320727308,1711539054086,-500.0,0.00054794,120]
[320727309,1711539054100,-500.0,0.00054794,120]
[320727310,1711539054115,-500.0,0.00054794,120]
[320727311,1711539054130,-832.53,0.00054794,120]
[320727312,1711539054144,-5423.8,0.00054794,120]
[320727313,1711539054159,-5589.81,0.00054794,120]
[320727314,1711539054173,-3477.52,0.00054794,120]
[320727315,1711539054189,-500.0,0.00054794,120]
[320727316,1711539054203,-500.0,0.00054794,120]
[320727317,1711539054218,-3295.4,0.00054794,120]
[320727318,1711539054233,-500.0,0.00054794,120]
[320727319,1711539054250,-79143.13,0.00054794,120]
[320727320,1711539054265,-500.0,0.00054794,120]
[320727321,1711539054280,-4233.1,0.00054794,120]
[320727322,1711539054296,-1554.43,0.00054794,120]
[320727323,1711539054312,-500.0,0.00054794,120]
[320727324,1711539054328,-500.0,0.00054794,120]
[320727325,1711539054343,-21230.92,0.00054794,120]
[320727326,1711539054359,-1796.45,0.00054794,120]
[320727327,1711539054375,-1488.59,0.00054794,120]
[320727328,1711539054390,-1590.82,0.00054794,120]
[320727329,1711539054405,-500.0,0.00054794,120]
[320727330,1711539054419,-500.0,0.00054794,120]
[320727331,1711539054435,-4270.02,0.00054794,120]
[320727332,1711539054450,-500.0,0.00054794,120]
[320727333,1711539054466,-1436.29,0.00054794,120]
[320727334,1711539054482,-1416.51,0.00054794,120]
[320727335,1711539054498,-500.0,0.00054794,120]
[320727336,1711539054514,-500.0,0.00054794,120]
[320727337,1711539054529,-1000.0,0.00054794,14]
[320727338,1711539054543,-4828.26,0.00054794,120]
[320727339,1711539054559,-2733.23,0.00054794,120]
[320727340,1711539054577,-2699.02,0.00054794,120]
[320727341,1711539054592,-4103.23,0.00054794,120]
[320727342,1711539054607,-794.6,0.00054794,120]
[320727343,1711539054623,-500.0,0.00054794,120]
[320727344,1711539054641,-2649.26,0.00054794,120]
[320727345,1711539054650,-3406.52,0.00054794,120]
[320727346,1711539054659,-1067.47,0.00054794,120]
[320727347,1711539054669,-500.0,0.00054794,120]
[320727348,1711539054680,-500.0,0.00054794,120]
[320727349,1711539054689,-1008.05,0.00054794,120]
[320727350,1711539054699,-500.0,0.00054794,120]
[320727351,1711539054708,-500.0,0.00054794,120]
[320727352,1711539054718,-532.43,0.00054794,120]
[320727353,1711539054728,-500.0,0.00054794,120]
[320727354,1711539054993,-500.0,0.00054794,120]
[320727355,1711539055014,-3326.63,0.00054794,120]
[320727356,1711539055024,-949.03,0.00054794,120]
[320727357,1711539055033,-13832.31,0.00054794,120]
[320727358,1711539055043,-500.0,0.00054794,120]
[320727359,1711539055053,-5725.46,0.00054794,120]
[320727360,1711539055063,-508.7214921,0.00054794,120]
[320727361,1711539055073,-500.0,0.00054794,120]
[320727362,1711539055082,-500.0,0.00054794,120]
[320727363,1711539055092,-1080.08,0.00054794,120]
[320727364,1711539055102,-638.55,0.00054794,120]
[320727365,1711539055111,-500.0,0.00054794,120]
[320727366,1711539055121,-532.1,0.00054794,120]
[320727367,1711539055130,-3178.59,0.00054794,120]
[320727368,1711539055140,-868.21,0.00054794,120]
[320727369,1711539055149,-500.0,0.00054794,120]
[320727370,1711539055159,-1914.32,0.00054794,120]
[320727371,1711539055170,-5718.22,0.00054794,120]
[320727372,1711539055181,-500.0,0.00054794,120]
[320727373,1711539055190,-1510.54,0.00054794,120]
[320727374,1711539055199,-6090.95,0.00054794,120]
[320727375,1711539055208,-500.0,0.00054794,120]
[320727376,1711539055218,-2368.29,0.00054794,120]
[320727377,1711539055227,-1975.68,0.00054794,120]
[320727378,1711539055237,-2626.24,0.00054794,120]
[320727379,1711539055248,-826.27,0.00054794,120]
[320727380,1711539055259,-509.66652084,0.00054794,120]
[320727381,1711539055268,-5971.8,0.00054794,120]
[320727382,1711539055278,-6306.66,0.00054794,120]
[320727383,1711539055288,-3796.34,0.00054794,120]
[320727384,1711539055298,-3897.67,0.00054794,120]
[320727385,1711539055308,-500.0,0.00054794,120]
[320727386,1711539055318,-2196.71,0.00054794,120]
[320727387,1711539055331,-1053.73,0.00054794,120]
[320727388,1711539055341,-500.0,0.00054794,7]
[320727389,1711539055351,-2509.66,0.00054794,120]
[320727390,1711539055361,-500.0,0.00054794,120]
[320727391,1711539055371,-2090.88,0.00054794,120]
[320727392,1711539055380,-500.0,0.00054794,120]
[320727393,1711539055390,-500.0,0.00054794,120]
[320727394,1711539055400,-6749.09,0.00054794,120]
[320727395,1711539055410,-505.61124055,0.00054794,120]
[320727396,1711539055419,-3728.83,0.00054794,120]
[320727397,1711539055431,-14051.88,0.00054794,120]
[320727398,1711539055442,-5336.71,0.00054794,120]
[320727399,1711539055451,-500.0,0.00054794,120]
[320727400,1711539055460,-500.0,0.00054794,120]
[320727401,1711539055470,-6046.1,0.00054794,120]
[320727402,1711539055480,-1020.49,0.00054794,120]
[320727403,1711539055490,-1400.16,0.00054794,120]
[320727404,1711539055499,-500.0,0.00054794,120]
[320727405,1711539055510,-3525.02,0.00054794,120]
[320727406,1711539055519,-500.0,0.00054794,120]
[320727407,1711539055528,-9670.8,0.00054794,120]
[320727408,1711539055538,-2244.9,0.00054794,120]
[320727409,1711539055547,-4278.93,0.00054794,120]
[320727410,1711539055556,-500.0,0.00054794,65]
[320727411,1711539055566,-500.0,0.00054794,120]
[320727412,1711539055576,-500.0,0.00054794,120]
[320727413,1711539055585,-5002.55,0.00054794,120]
[320727414,1711539055595,-500.0,0.00054794,120]
[320727415,1711539055604,-5599.22,0.00054794,120]
[320727416,1711539055613,-1319.68,0.00054794,120]
[320727417,1711539055624,-4145.52,0.00054794,120]
[320727418,1711539055633,-500.0,0.00054794,120]
[320727419,1711539055642,-1033.96,0.00054794,120]
[320727420,1711539055651,-8690.1,0.00054794,120]
[320727421,1711539055661,-500.0,0.00054794,120]
[320727422,1711539055670,-759.99,0.00054794,120]
[320727423,1711539055681,-500.0,0.00054794,120]
[320727424,1711539055690,-3689.75,0.00054794,120]
[320727425,1711539055700,-938.28,0.00054794,120]
[320727426,1711539055709,-500.0,0.00054794,120]
[320727427,1711539055719,-3289.32,0.00054794,120]
[320727428,1711539055730,-773.1,0.00054794,120]
[320727429,1711539055740,-8474.88,0.00054794,120]
[320727430,1711539055749,-670.41,0.00054794,120]
[320727431,1711539055758,-684.84,0.00054794,120]
[320727432,1711539055768,-500.0,0.00054794,120]
[320727433,1711539055778,-508.01786223,0.00054794,120]
[320727434,1711539055788,-16950.66,0.00054794,120]
[320727435,1711539055798,-991.15,0.00054794,120]
[320727436,1711539055808,-500.0,0.00054794,120]
[320727437,1711539055817,-5480.38,0.00054794,120]
[320727438,1711539055827,-500.0,0.00054794,120]
[320727439,1711539055837,-500.0,0.00054794,120]
[320727440,1711539055847,-3421.26,0.00054794,120]
[320727441,1711539055856,-649.49,0.00054794,120]
[320727442,1711539055865,-500.0,0.00054794,120]
[320727443,1711539055875,-1159.66,0.00054794,120]
[320727444,1711539055884,-2172.19,0.00054794,120]
[320727445,1711539055893,-2895.84,0.00054794,120]
[320727446,1711539055903,-506.0698617,0.00054794,120]
[320727447,1711539055913,-20784.38,0.00054794,120]
[320727448,1711539055922,-4740.83,0.00054794,120]
[320727449,1711539055933,-358.93939783,0.00054794,120]
[320727450,1711539055943,-2732.75,0.00054794,120]
[320727451,1711539055952,-17160.48,0.00054794,120]
[320727452,1711539055962,-886.33,0.00054794,120]
[320727453,1711539055971,-672.63,0.00054794,120]
[320727454,1711539055981,-500.0,0.00054794,120]
[320727455,1711539055990,-6247.3,0.00054794,120]
[320727456,1711539056000,-500.0,0.00054794,120]
[320727457,1711539056010,-301.85,0.00054794,120]
[320727458,1711539056020,-5091.09,0.00054794,21]
[320727459,1711539056029,-500.0,0.00054794,120]
[320727460,1711539056038,-8381.34,0.00054794,120]
[320727461,1711539056048,-584.47,0.00054794,120]
[320727462,1711539056057,-4086.57,0.00054794,120]
[320727463,1711539056067,-2273.07,0.00054794,120]
[320727464,1711539056077,-2370.47,0.00054794,120]
[320727465,1711539056086,-19292.32,0.00054794,120]
[320727466,1711539056096,-2960.24,0.00054794,120]
[320727467,1711539056105,-1173.99,0.00054794,120]
[320727468,1711539056114,-500.0,0.00054794,120]
[320727469,1711539056124,-500.0,0.00054794,120]
[320727470,1711539056133,-8798.58,0.00054794,120]
[320727471,1711539056142,-500.0,0.00054794,85]
[320727472,1711539056151,-2202.57,0.00054794,120]
[320727473,1711539056160,-151.0,0.00054794,120]
[320727474,1711539056171,-500.0,0.00054794,120]
[320727475,1711539056181,-3278.85,0.00054794,120]
[320727476,1711539056190,-12410.62,0.00054794,120]
[320727477,1711539056199,-3583.19,0.00054794,120]
[320727478,1711539056209,-876.94,0.00054794,120]
[320727479,1711539056218,-500.0,0.00054794,120]
[320727480,1711539056228,-895.2,0.00054794,120]
[320727481,1711539056239,-500.0,0.00054794,120]
[320727482,1711539056250,-500.0,0.00054794,120]
[320727483,1711539056259,-500.0,0.00054794,120]
[320727484,1711539056268,-503.62782108,0.00054794,120]
[320727485,1711539056277,-500.0,0.00054794,120]
[320727486,1711539056288,-273.201252,0.00054794,120]
[320727487,1711539056297,-1845.88,0.00054794,120]
[320727488,1711539056308,-937.27,0.00054794,120]
[320727489,1711539056317,-1083.78,0.00054794,120]
[320727490,1711539056326,-3201.11,0.00054794,120]
[320727491,1711539056336,-500.0,0.00054794,120]
[320727492,1711539056345,-2638.24,0.00054794,120]
[320727493,1711539056355,-1388.52,0.00054794,120]
[320727494,1711539056364,-4892.27,0.00054794,120]
[320727495,1711539056373,-500.0,0.00054794,120]
[320727496,1711539056384,-2480.34,0.00054794,120]
[320727497,1711539056394,-509.8050617,0.00054794,120]
[320727498,1711539056403,-1350.19,0.00054794,120]
[320727499,1711539056412,-3142.36,0.00054794,120]
[320727500,1711539056422,-500.74956829,0.00054794,120]
[320727501,1711539056433,-2180.01,0.00054794,120]
[320727502,1711539056442,-500.0,0.00054794,120]
[320727503,1711539056451,-1470.53,0.00054794,120]
[320727504,1711539056461,-500.0,0.00054794,120]
[320727505,1711539056472,-500.0,0.00054794,120]
[320727506,1711539056481,-500.0,0.00054794,120]
[320727507,1711539056491,-500.0,0.00054794,120]
[320727508,1711539056501,-500.0,0.00054794,120]
[320727509,1711539056510,-500.0,0.00054794,120]
[320727510,1711539056520,-505.71,0.00054794,120]
[320727511,1711539056529,-1659.22,0.00054794,120]
[320727512,1711539056539,-151.0,0.00054794,30]
[320727513,1711539056548,-8083.93,0.00054794,120]
[320727514,1711539056558,-500.0,0.00054794,120]
[320727515,1711539056568,-500.0,0.00054794,120]
[320727516,1711539056579,-2931.63,0.00054794,120]
[320727517,1711539056588,-2901.36,0.00054794,120]
[320727518,1711539056598,-502.79464683,0.00054794,120]
[320727519,1711539056607,-541.86,0.00054794,120]
[320727520,1711539056617,-3516.57,0.00054794,120]
[320727521,1711539056627,-4166.77,0.00054794,120]
[320727522,1711539056636,-156.93487137,0.00054794,120]
[320727523,1711539056646,-379.85,0.00054794,120]
[320727524,1711539056655,-500.0,0.00054794,120]
[320727525,1711539056665,-10990.32,0.00054794,120]
[320727526,1711539056674,-1139.26,0.00054794,120]
[320727527,1711539056684,-151.0,0.00054794,120]
[320727528,1711539056692,-500.0,0.00054794,120]
[320727529,1711539056702,-686.73,0.00054794,120]
[320727530,1711539056711,-1716.32,0.00054794,120]
[320727531,1711539056721,-399.64614064,0.00054794,5]
[320727532,1711539056730,-500.0,0.00054794,120]
[320727533,1711539056740,-151.0,0.00054794,120]
[320727534,1711539056749,-2230.4,0.00054794,120]
[320727535,1711539056759,-1803.38,0.00054794,120]
[320727536,1711539056769,-503.88103075,0.00054794,120]
[320727537,1711539056779,-502.38864528,0.00054794,120]
[320727538,1711539056789,-500.0,0.00054794,120]
[320727539,1711539056799,-2528.02,0.00054794,120]
[320727540,1711539056809,-752.78,0.00054794,120]
[320727541,1711539056818,-852.718661,0.00054794,120]
[320727542,1711539056828,-500.0,0.00054794,120]
[320727543,1711539056839,-9373.0,0.00054794,120]
[320727544,1711539056848,-1000.0,0.00054795,13]
[320727545,1711539056858,-1000.0,0.00054795,13]
[320727546,1711539056867,-1000.0,0.00054795,13]
[320727547,1711539056877,-1000.0,0.00054795,13]
[320727548,1711539056886,-1000.0,0.00054795,13]
[320727549,1711539056896,-1000.0,0.00054795,13]
[320727550,1711539056905,-1000.0,0.00054795,13]
[320727551,1711539056915,-1000.0,0.00054795,13]
[320727552,1711539056924,-1000.0,0.00054795,13]
[320727553,1711539056936,-1000.0,0.00054795,13]
[320727554,1711539056946,-1000.0,0.00054795,13]
[320727555,1711539056955,-1000.0,0.00054795,13]
[320727556,1711539056965,-1000.0,0.00054795,13]
[320727557,1711539056975,-1000.0,0.00054795,13]
[320727558,1711539056985,-1000.0,0.00054795,13]
[320727559,1711539056994,-1000.0,0.00054795,13]
[320727560,1711539057004,-1000.0,0.00054795,13]
[320727561,1711539057014,-1000.0,0.00054795,13]
[320727562,1711539057023,-1000.0,0.00054795,13]
[320727563,1711539057032,-1000.0,0.00054795,13]
[320727564,1711539057042,-1000.0,0.00054795,13]
[320727565,1711539057051,-1000.0,0.00054795,13]
[320727566,1711539057060,-1000.0,0.00054795,13]
[320727567,1711539057069,-1000.0,0.00054795,13]
[320727568,1711539057080,-1000.0,0.00054795,13]
[320727569,1711539057090,-1000.0,0.00054795,13]
[320727570,1711539057099,-1000.0,0.00054795,13]
[320727571,1711539057108,-1000.0,0.00054795,13]
[320727572,1711539057118,-973.0,0.00054795,13]
[320727573,1711539057127,-970.0,0.00054795,120]
[320727574,1711539057138,-918.0,0.00054795,120]
[320727575,1711539057147,-173.032719,0.00054798,108]
[320727576,1711539057156,-4000.0,0.000548,120]
[320727577,1711539057166,-150.0,0.00054802,14]
[320727578,1711539057175,-150.0,0.00054826,14]
[320727579,1711539057186,-150.0,0.00054843,14]
[320727580,1711539057195,-150.0,0.00054853,14]
[320727581,1711539057204,-150.0,0.00054862,14]
[320727582,1711539057214,-150.0,0.00054865,14]
[320727583,1711539057223,-150.0,0.00054873,14]
[320727584,1711539057232,-150.0,0.00054877,14]
[320727585,1711539057242,-150.0,0.0005488,14]
[320727586,1711539057256,-150.0,0.00054881,14]